fUST/lending_fUST_20250810
["ID","MTS","AMOUNT","RATE_DAILY","PERIOD"]
[378358738,1754837443466,-460.0,0.00020441,2]
[378358739,1754837443475,-460.0,0.00020441,2]
[378358740,1754837443484,-460.0,0.00020441,2]
[378358741,1754837443494,-460.0,0.00020441,2]
[378358742,1754837443503,-460.0,0.00020441,2]
[378358744,1754837443512,-240.68617602,0.00020441,2]
[378358746,1754837443521,-460.0,0.00020441,2]
[378358747,1754837443532,-460.0,0.00020441,2]
[378358749,1754837443542,-460.0,0.00020441,2]
[378358751,1754837443551,-460.0,0.00020441,2]
[378358753,1754837443561,-460.0,0.00020441,2]
[378358755,1754837443571,-460.0,0.00020441,2]
[378358757,1754837443580,-460.0,0.00020441,2]
[378358759,1754837443589,-460.0,0.00020441,2]
[378358761,1754837443599,-460.0,0.00020441,2]
[378358762,1754837443608,-460.0,0.00020441,2]
[378358763,1754837443620,-460.0,0.00020441,2]
[378358764,1754837443630,-462.66714488,0.00020441,2]
[378358765,1754837443640,-379.40167366,0.00020441,2]
[378358766,1754837443650,-460.0,0.00020441,2]
[378358767,1754837443661,-460.0,0.00020441,2]
[378358768,1754837443670,-460.0,0.00020441,2]
[378358769,1754837443680,-460.0,0.00020441,2]
[378358770,1754837443691,-460.0,0.00020441,2]
[378358771,1754837443701,-460.0,0.00020441,2]
[378358773,1754837443711,-460.0,0.00020441,2]
[378358774,1754837443721,-461.85,0.00020441,2]
[378358775,1754837443731,-460.0,0.00020441,2]
[378358776,1754837443740,-460.0,0.00020441,2]
[378358778,1754837443750,-460.0,0.00020441,2]
[378358780,1754837443760,-460.0,0.00020441,2]
[378358782,1754837443770,-460.0,0.00020441,2]
[378358784,1754837443779,-460.0,0.00020441,2]
[378358786,1754837443789,-460.0,0.00020441,2]
[378358788,1754837443799,-460.0,0.00020441,2]
[378358790,1754837443809,-460.0,0.00020441,2]
[378358792,1754837443818,-460.0,0.00020441,2]
[378358794,1754837443828,-464.79522968,0.00020441,2]
[378358796,1754837443837,-460.0,0.00020441,2]
[378358797,1754837443847,-460.0,0.00020441,2]
[378358798,1754837443857,-460.0,0.00020441,2]
[378358799,1754837443866,-460.0,0.00020441,2]
[378358800,1754837443876,-460.0,0.00020441,2]
[378358801,1754837443886,-460.0,0.00020441,2]
[378358802,1754837443895,-460.0,0.00020441,2]
[378358803,1754837443905,-460.0,0.00020441,2]
[378358804,1754837443915,-471.16124468,0.00020441,2]
[378358805,1754837443925,-460.0,0.00020441,2]
[378358806,1754837443934,-460.0,0.00020441,2]
[378358807,1754837443944,-460.0,0.00020441,2]
[378358808,1754837443954,-460.0,0.00020441,2]
[378358809,1754837443966,-460.0,0.00020441,2]
[378358810,1754837443975,-460.0,0.00020441,2]
[378358811,1754837443985,-460.0,0.00020441,2]
[378358812,1754837443995,-460.0,0.00020441,2]
[378358813,1754837444004,-460.0,0.00020441,2]
[378358814,1754837444014,-460.0,0.00020441,2]
[378358815,1754837444024,-460.0,0.00020441,2]
[378358816,1754837444034,-460.0,0.00020441,2]
[378358817,1754837444044,-460.0,0.00020441,2]
[378358818,1754837444053,-461.10781677,0.00020441,2]
[378358819,1754837444063,-460.0,0.00020441,2]
[378358820,1754837444073,-11477.08325084,0.00020441,2]
[378358821,1754837444082,-460.0,0.00020441,2]
[378358822,1754837444092,-460.0,0.00020441,2]
[378358823,1754837444101,-460.0,0.00020441,2]
[378358824,1754837444112,-460.0,0.00020441,2]
[378358825,1754837444122,-460.0,0.00020441,2]
[378358826,1754837444131,-460.0,0.00020441,2]
[378358827,1754837444141,-460.0,0.00020441,2]
[378358828,1754837444150,-462.55938736,0.00020441,2]
[378358829,1754837444160,-460.0,0.00020441,2]
[378358830,1754837444169,-460.0,0.00020441,2]
[378358831,1754837444178,-300.0,0.00020441,2]
[378358832,1754837444188,-460.0,0.00020441,2]
[378358833,1754837444197,-460.0,0.00020441,2]
[378358834,1754837444207,-460.0,0.00020441,2]
[378358835,1754837444216,-462.39827647,0.00020441,2]
[378358837,1754837444226,-460.0,0.00020441,2]
[378358838,1754837444235,-460.0,0.00020441,2]
[378358839,1754837444245,-460.0,0.00020441,2]
[378358840,1754837444254,-460.0,0.00020441,2]
[378358841,1754837444264,-460.0,0.00020441,2]
[378358842,1754837444273,-460.0,0.00020441,2]
[378358843,1754837444283,-460.0,0.00020441,2]
[378358844,1754837444292,-475.49987149,0.00020441,2]
[378358845,1754837444301,-462.2982788,0.00020441,2]
[378358846,1754837444311,-460.0,0.00020441,2]
[378358847,1754837444320,-460.0,0.00020441,2]
[378358848,1754837444330,-461.69652619,0.00020441,2]
[378358849,1754837444339,-500.0,0.00020453,2]
[378358850,1754837444348,-500.68301765,0.00020473,2]
[378358851,1754837444358,-460.0,0.00020538,2]
[378358852,1754837444367,-460.0,0.00020538,2]
[378358853,1754837444377,-554.08,0.00020539,2]
[378358854,1754837444386,-500.0,0.00020539,2]
[378358855,1754837444396,-500.0,0.00020539,2]
[378358856,1754837444405,-903.81,0.0002054,2]
[378358857,1754837444415,-500.0,0.0002054,2]
[378358858,1754837444424,-500.0,0.0002054,2]
[378358859,1754837444434,-500.0,0.0002054,2]
[378358860,1754837444443,-500.0,0.0002054,2]
[378358861,1754837444452,-460.0,0.00020541,2]
[378358862,1754837444464,-460.0,0.00020541,2]
[378358863,1754837444473,-460.0,0.00020541,2]
[378358864,1754837444483,-460.0,0.00020541,2]
[378358865,1754837444492,-460.0,0.00020541,2]
[378358866,1754837444502,-460.0,0.00020541,2]
[378358867,1754837444511,-460.0,0.00020541,2]
[378358868,1754837444521,-460.0,0.00020541,2]
[378358869,1754837444531,-460.0,0.00020541,2]
[378358870,1754837444540,-597.75371655,0.00020541,2]
[378358871,1754837444550,-460.0,0.00020541,2]
[378358872,1754837444559,-460.0,0.00020541,2]
[378358873,1754837444569,-460.0,0.00020541,2]
[378358874,1754837444579,-460.0,0.00020541,2]
[378358875,1754837444588,-460.0,0.00020541,2]
[378358876,1754837444599,-460.0,0.00020541,2]
[378358877,1754837444609,-3079.07,0.00020541,2]
[378358878,1754837444624,-629.31,0.00020541,2]
[378358879,1754837444633,-460.0,0.00020541,2]
[378358880,1754837444643,-1082.06,0.00020541,2]
[378358881,1754837444652,-460.0,0.00020712,2]
[378358882,1754837444663,-460.0,0.00020712,2]
[378358883,1754837444672,-460.0,0.00020712,2]
[378358884,1754837444681,-460.0,0.00020712,2]
[378358885,1754837444691,-460.0,0.00020712,2]
[378358886,1754837444700,-460.0,0.00020712,2]
[378358887,1754837444711,-460.0,0.00020712,2]
[378358888,1754837444720,-460.0,0.00020713,2]
[378358889,1754837444729,-460.0,0.00020713,2]
[378358890,1754837444738,-460.0,0.00020713,2]
[378358891,1754837444748,-256.07142061,0.00020713,2]
[378358892,1754837444758,-460.0,0.00020713,2]
[378358893,1754837444767,-460.0,0.00020713,2]
[378358894,1754837444776,-460.0,0.00020713,2]
[378358895,1754837444785,-460.0,0.00020713,2]
[378358897,1754837444794,-460.0,0.00020713,2]
[378358899,1754837444803,-460.0,0.00020713,2]
[378358901,1754837444813,-521.05,0.00020713,2]
[378358903,1754837444822,-549.92,0.00020713,2]
[378358905,1754837444832,-1529.48,0.00020713,2]
[378358907,1754837444841,-460.0,0.00020713,2]
[378358909,1754837444851,-460.0,0.00020713,2]
[378358911,1754837444860,-460.0,0.00020713,2]
[378358913,1754837444869,-2034.57,0.00020713,2]
[378358915,1754837444879,-460.0,0.00020713,2]
[378358917,1754837444888,-460.0,0.00020713,2]
[378358919,1754837444897,-460.0,0.00020713,2]
[378358921,1754837444907,-460.0,0.00020713,2]
[378358923,1754837444916,-460.0,0.00020713,2]
[378358925,1754837444925,-460.0,0.00020713,2]
[378358927,1754837444934,-460.0,0.00020713,2]
[378358929,1754837444943,-460.0,0.00020713,2]
[378358931,1754837444953,-460.0,0.00020713,2]
[378358933,1754837444963,-460.0,0.00020713,2]
[378358935,1754837444972,-460.0,0.00020713,2]
[378358937,1754837444982,-460.0,0.00020713,2]
[378358939,1754837444991,-460.0,0.00020713,2]
[378358941,1754837445001,-460.0,0.00020713,2]
[378358943,1754837445010,-460.0,0.00020713,2]
[378358945,1754837445019,-460.0,0.00020713,2]
[378358947,1754837445028,-460.0,0.00020713,2]
[378358949,1754837445038,-645.18,0.00020713,2]
[378358951,1754837445047,-1000.0,0.00020714,2]
[378358954,1754837445058,-460.0,0.00020714,2]
[378358956,1754837445067,-500.0,0.00020714,2]
[378358958,1754837445078,-460.0,0.00020714,2]
[378358960,1754837445087,-460.0,0.00020714,2]
[378358962,1754837445096,-2217.6,0.00020714,2]
[378358964,1754837445106,-1247.95,0.00020714,2]
[378358966,1754837445115,-460.0,0.00020714,2]
[378358968,1754837445124,-669.16,0.00020714,2]
[378358969,1754837445133,-460.0,0.00020714,2]
[378358972,1754837445142,-460.0,0.00020714,2]
[378358974,1754837445151,-594.79,0.00020714,2]
[378358975,1754837445161,-1534.17,0.00020714,2]
[378358978,1754837445170,-1237.82,0.00020714,2]
[378358980,1754837445179,-576.72319466,0.00020715,2]
[378358981,1754837445189,-592.3127434,0.00020715,2]
[378358984,1754837445198,-460.0,0.00020715,2]
[378358985,1754837445208,-460.0,0.00020715,2]
[378358999,1754837445321,-460.0,0.00020715,2]
[378359001,1754837445330,-460.0,0.00020715,2]
[378359003,1754837445339,-460.0,0.00020715,2]
[378359005,1754837445348,-460.0,0.00020715,2]
[378359007,1754837445358,-460.0,0.00020715,2]
[378359009,1754837445367,-460.0,0.00020715,2]
[378359010,1754837445376,-460.0,0.00020715,2]
[378359012,1754837445385,-460.0,0.00020715,2]
[378359014,1754837445395,-460.0,0.00020715,2]
[378359017,1754837445404,-466.14026298,0.00020715,2]
[378359018,1754837445413,-464.59220174,0.00020715,2]
[378359020,1754837445422,-460.0,0.00020715,2]
[378359023,1754837445433,-460.0,0.00020715,2]
[378359025,1754837445442,-460.0,0.00020715,2]
[378359026,1754837445452,-460.0,0.00020715,2]
[378359029,1754837445462,-460.0,0.00020715,2]
[378359031,1754837445471,-460.0,0.00020715,2]
[378359033,1754837445481,-463.65080257,0.00020715,2]
[378359034,1754837445491,-460.0,0.00020715,2]
[378359037,1754837445500,-460.0,0.00020715,2]
[378359038,1754837445510,-460.0,0.00020715,2]
[378359040,1754837445519,-460.0,0.00020715,2]
[378359043,1754837445528,-377.09,0.00020715,2]
[378359044,1754837445538,-460.0,0.00020715,2]
[378359046,1754837445548,-460.0,0.00020715,2]
[378359049,1754837445558,-260.25751438,0.00020715,2]
[378359050,1754837445569,-460.0,0.00020715,2]
[378359052,1754837445578,-460.0,0.00020715,2]
[378359054,1754837445587,-460.0,0.00020715,2]
[378359056,1754837445597,-460.0,0.00020715,2]
[378359058,1754837445606,-460.0,0.00020715,2]
[378359060,1754837445617,-460.0,0.00020715,2]
[378359062,1754837445627,-460.0,0.00020715,2]
[378359064,1754837445636,-460.0,0.00020715,2]
[378359066,1754837445646,-460.0,0.00020715,2]
[378359068,1754837445655,-460.0,0.00020715,2]
[378359070,1754837445665,-460.0,0.00020715,2]
[378359071,1754837445674,-460.0,0.00020715,2]
[378359073,1754837445683,-468.65180991,0.00020715,2]
[378359074,1754837445694,-460.0,0.00020715,2]
[378359075,1754837445703,-460.0,0.00020715,2]
[378359076,1754837445714,-460.0,0.00020715,2]
[378359077,1754837445723,-460.0,0.00020715,2]
[378359078,1754837445732,-460.0,0.00020715,2]
[378359079,1754837445741,-460.0,0.00020715,2]
[378359080,1754837445752,-460.0,0.00020715,2]
[378359081,1754837445761,-460.0,0.00020715,2]
[378359082,1754837445770,-460.0,0.00020715,2]
[378359083,1754837445780,-471.85196324,0.00020715,2]
[378359084,1754837445789,-466.55652126,0.00020715,2]
[378359085,1754837445799,-460.0,0.00020715,2]
[378359087,1754837445808,-460.0,0.00020715,2]
[378359089,1754837445818,-460.0,0.00020715,2]
[378359090,1754837445827,-460.0,0.00020715,2]
[378359091,1754837445836,-460.0,0.00020715,2]
[378359092,1754837445845,-460.0,0.00020715,2]
[378359093,1754837445855,-460.0,0.00020715,2]
[378359094,1754837445864,-460.0,0.00020715,2]
[378359095,1754837445874,-460.0,0.00020715,2]
[378359096,1754837445883,-500.0,0.00020721,2]
[378359097,1754837445893,-1000.0,0.00020721,2]
[378359098,1754837445902,-1000.0,0.00020721,2]
[378359099,1754837445911,-1000.0,0.00020721,2]
[378359100,1754837445921,-500.0,0.00020723,2]
[378359101,1754837445931,-500.0,0.00020727,2]
[378359102,1754837445940,-1862.84255123,0.00020727,2]
[378359103,1754837445950,-460.0,0.00020812,2]
[378359105,1754837445960,-460.0,0.00020812,2]
[378359107,1754837445970,-903.81,0.00020814,2]
[378359109,1754837445979,-500.0,0.00020814,2]
[378359111,1754837445989,-500.0,0.00020814,2]
[378359113,1754837445998,-217.58981636,0.00020815,2]
[378359115,1754837446008,-460.0,0.00020815,2]
[378359117,1754837446018,-460.0,0.00020815,2]
[378359119,1754837446028,-460.0,0.00020815,2]
[378359121,1754837446038,-460.0,0.00020815,2]
[378359123,1754837446047,-460.0,0.00020815,2]
[378359125,1754837446057,-460.0,0.00020815,2]
[378359127,1754837446066,-460.0,0.00020815,2]
[378359129,1754837446076,-460.0,0.00020815,2]
[378359130,1754837446085,-460.0,0.00020815,2]
[378359133,1754837446095,-460.0,0.00020815,2]
[378359136,1754837446105,-460.0,0.00020815,2]
[378359138,1754837446114,-3079.07,0.00020815,2]
[378359139,1754837446124,-629.31,0.00020815,2]
[378359142,1754837446133,-1082.06,0.00020815,2]
[378359143,1754837446143,-500.0,0.00020972,2]
[378359145,1754837446152,-228.3,0.00020981,2]
[378359147,1754837446162,-460.0,0.00020986,2]
[378359149,1754837446171,-460.0,0.00020986,2]
[378359151,1754837446180,-250.8,0.00020986,2]
[378359153,1754837446189,-460.0,0.00020986,2]
[378359155,1754837446199,-460.0,0.00020986,2]
[378359157,1754837446208,-460.0,0.00020986,2]
[378359159,1754837446217,-460.0,0.00020986,2]
[378359161,1754837446227,-460.0,0.00020987,2]
[378359164,1754837446236,-460.0,0.00020987,2]
[378359166,1754837446246,-194.72,0.00020987,2]
[378359168,1754837446256,-460.0,0.00020987,2]
[378359170,1754837446265,-460.0,0.00020987,2]
[378359172,1754837446275,-521.05,0.00020987,2]
[378359174,1754837446284,-1529.48,0.00020987,2]
[378359175,1754837446294,-2034.57,0.00020987,2]
[378359177,1754837446303,-460.0,0.00020987,2]
[378359181,1754837446312,-460.0,0.00020987,2]
[378359184,1754837446322,-552.33,0.00020987,2]
[378359187,1754837446331,-460.0,0.00020987,2]
[378359189,1754837446340,-460.0,0.00020987,2]
[378359192,1754837446350,-460.0,0.00020987,2]
[378359195,1754837446360,-460.0,0.00020987,2]
[378359196,1754837446369,-460.0,0.00020987,2]
[378359198,1754837446380,-460.0,0.00020987,2]
[378359201,1754837446390,-460.0,0.00020987,2]
[378359202,1754837446399,-460.0,0.00020987,2]
[378359205,1754837446409,-645.18,0.00020987,2]
[378359206,1754837446419,-580.55913127,0.00020987,2]
[378359208,1754837446428,-574.25491756,0.00020987,2]
[378359210,1754837446438,-574.25491756,0.00020987,2]
[378359212,1754837446447,-574.25491756,0.00020987,2]
[378359214,1754837446457,-574.25491756,0.00020987,2]
[378359217,1754837446467,-574.25491756,0.00020987,2]
[378359218,1754837446476,-574.25491756,0.00020987,2]
[378359221,1754837446486,-574.25491756,0.00020987,2]
[378359222,1754837446495,-574.25491756,0.00020987,2]
[378359225,1754837446505,-574.25491756,0.00020987,2]
[378359226,1754837446514,-574.25491756,0.00020987,2]
[378359229,1754837446524,-574.25491756,0.00020987,2]
[378359231,1754837446533,-574.25491756,0.00020987,2]
[378359233,1754837446543,-574.25491756,0.00020987,2]
[378359234,1754837446552,-574.25491756,0.00020987,2]
[378359236,1754837446561,-574.25491756,0.00020987,2]
[378359238,1754837446571,-574.25491756,0.00020987,2]
[378359240,1754837446581,-500.0,0.00020988,2]
[378359243,1754837446591,-460.0,0.00020988,2]
[378359245,1754837446600,-460.0,0.00020988,2]
[378359246,1754837446611,-2217.6,0.00020988,2]
[378359249,1754837446623,-1247.95,0.00020988,2]
[378359250,1754837446633,-669.16,0.00020988,2]
[378359252,1754837446642,-460.0,0.00020988,2]
[378359254,1754837446653,-392.12844213,0.00020988,2]
[378359257,1754837446663,-594.79,0.00020988,2]
[378359259,1754837446673,-1534.17,0.00020988,2]
[378359261,1754837446682,-1237.82,0.00020988,2]
[378359262,1754837446692,-460.0,0.00020989,2]
[378359265,1754837446702,-460.0,0.00020989,2]
[378359266,1754837446711,-460.0,0.00020989,2]
[378359268,1754837446721,-460.0,0.00020989,2]
[378359270,1754837446731,-460.0,0.00020989,2]
[378359272,1754837446740,-460.0,0.00020989,2]
[378359275,1754837446750,-460.0,0.00020989,2]
[378359277,1754837446760,-397.49481728,0.00020989,2]
[378359278,1754837446770,-460.0,0.00020989,2]
[378359280,1754837446779,-460.0,0.00020989,2]
[378359282,1754837446789,-460.0,0.00020989,2]
[378359285,1754837446800,-460.0,0.00020989,2]
[378359287,1754837446809,-460.0,0.00020989,2]
[378359289,1754837446819,-460.0,0.00020989,2]
[378359291,1754837446829,-460.0,0.00020989,2]
[378359293,1754837446839,-460.0,0.00020989,2]
[378359295,1754837446849,-460.0,0.00020989,2]
[378359297,1754837446859,-460.0,0.00020989,2]
[378359299,1754837446869,-460.0,0.00020989,2]
[378359301,1754837446878,-460.0,0.00020989,2]
[378359303,1754837446888,-460.0,0.00020989,2]
[378359306,1754837446899,-460.0,0.00020989,2]
[378359307,1754837446908,-460.0,0.00020989,2]
[378359310,1754837446918,-460.0,0.00020989,2]
[378359311,1754837446928,-460.0,0.00020989,2]
[378359314,1754837446938,-460.0,0.00020989,2]
[378359316,1754837446948,-460.0,0.00020989,2]
[378359318,1754837446958,-460.0,0.00020989,2]
[378359320,1754837446968,-366.24621545,0.00020989,2]
[378359321,1754837446978,-460.0,0.00020989,2]
[378359323,1754837446987,-460.0,0.00020989,2]
[378359325,1754837446997,-470.28311416,0.00020989,2]
[378359327,1754837447007,-460.0,0.00020989,2]
[378359330,1754837447017,-460.0,0.00020989,2]
[378359331,1754837447026,-367.57843332,0.00020989,2]
[378359332,1754837447036,-460.0,0.00020989,2]
[378359333,1754837447046,-380.79507103,0.00020989,2]
[378359334,1754837447056,-460.0,0.00020989,2]
[378359335,1754837447065,-460.0,0.00020989,2]
[378359336,1754837447075,-460.0,0.00021086,2]
[378359337,1754837447084,-903.81,0.00021088,2]
[378359338,1754837447093,-500.0,0.00021088,2]
[378359339,1754837447103,-460.0,0.00021089,2]
[378359340,1754837447113,-460.0,0.00021089,2]
[378359341,1754837447123,-460.0,0.00021089,2]
[378359342,1754837447133,-460.0,0.00021089,2]
[378359343,1754837447143,-460.0,0.00021089,2]
[378359344,1754837447152,-460.0,0.00021089,2]
[378359345,1754837447161,-483.72,0.00021089,2]
[378359346,1754837447171,-460.0,0.00021089,2]
[378359347,1754837447181,-460.0,0.00021089,2]
[378359348,1754837447192,-3079.07,0.00021089,2]
[378359349,1754837447202,-629.31,0.00021089,2]
[378359350,1754837447211,-1082.06,0.00021089,2]
[378359351,1754837447221,-200.0,0.00021171,15]
[378359352,1754837447231,-300.0,0.00021171,15]
[378359353,1754837447240,-300.0,0.00021197,2]
[378359354,1754837447251,-460.0,0.0002126,2]
[378359355,1754837447260,-256.41275393,0.0002126,2]
[378359356,1754837447270,-460.0,0.0002126,2]
[378359357,1754837447280,-460.0,0.0002126,2]
[378359359,1754837447289,-460.0,0.00021261,2]
[378359361,1754837447299,-491.52373532,0.00021261,2]
[378359363,1754837447309,-460.0,0.00021261,2]
[378359365,1754837447319,-460.0,0.00021261,2]
[378359368,1754837447329,-521.05,0.00021261,2]
[378359371,1754837447338,-1529.48,0.00021261,2]
[378359375,1754837447348,-2034.57,0.00021261,2]
[378359377,1754837447358,-227.23,0.00021261,2]
[378359381,1754837447367,-223.09189794,0.00021261,2]
[378359383,1754837447377,-460.0,0.00021261,2]
[378359386,1754837447387,-460.0,0.00021261,2]
[378359388,1754837447396,-460.0,0.00021261,2]
[378359391,1754837447405,-406.56499778,0.00021261,2]
[378359393,1754837447415,-460.0,0.00021261,2]
[378359396,1754837447424,-460.0,0.00021261,2]
[378359398,1754837447434,-460.0,0.00021261,2]
[378359402,1754837447443,-645.18,0.00021261,2]
[378359405,1754837447453,-460.0,0.00021262,2]
[378359407,1754837447463,-460.0,0.00021262,2]
[378359411,1754837447473,-2217.6,0.00021262,2]
[378359413,1754837447483,-1247.95,0.00021262,2]
[378359417,1754837447492,-669.16,0.00021262,2]
[378359420,1754837447502,-594.79,0.00021262,2]
[378359422,1754837447512,-1534.17,0.00021262,2]
[378359424,1754837447524,-1237.82,0.00021262,2]
[378359427,1754837447534,-460.0,0.00021263,2]
[378359428,1754837447543,-249.84,0.00021263,2]
[378359430,1754837447553,-460.0,0.00021263,2]
[378359432,1754837447563,-460.0,0.00021263,2]
[378359434,1754837447572,-460.0,0.00021263,2]
[378359436,1754837447582,-460.0,0.00021263,2]
[378359438,1754837447592,-378.9579441,0.00021263,2]
[378359441,1754837447601,-460.0,0.00021263,2]
[378359442,1754837447611,-460.0,0.00021263,2]
[378359445,1754837447624,-348.35971162,0.00021263,2]
[378359446,1754837447634,-460.0,0.00021263,2]
[378359449,1754837447644,-460.0,0.00021263,2]
[378359450,1754837447654,-460.0,0.00021263,2]
[378359453,1754837447666,-460.0,0.00021263,2]
[378359455,1754837447675,-460.0,0.00021263,2]
[378359457,1754837447685,-460.0,0.00021263,2]
[378359458,1754837447694,-460.0,0.00021263,2]
[378359460,1754837447703,-460.0,0.00021263,2]
[378359472,1754837447804,-460.0,0.00021263,2]
[378359474,1754837447815,-460.0,0.00021263,2]
[378359476,1754837447825,-473.56707233,0.00021263,2]
[378359478,1754837447835,-460.0,0.00021263,2]
[378359480,1754837447845,-460.0,0.00021263,2]
[378359482,1754837447854,-460.0,0.00021263,2]
[378359484,1754837447862,-469.68660814,0.00021263,2]
[378359486,1754837447872,-495.26047319,0.00021263,2]
[378359488,1754837447882,-460.0,0.00021263,2]
[378359490,1754837447891,-460.0,0.00021263,2]
[378359492,1754837447901,-460.0,0.00021263,2]
[378359494,1754837447911,-1500.0,0.00021268,2]
[378359496,1754837447922,-500.0,0.00021268,2]
[378359498,1754837447932,-308.48431578,0.00021268,2]
[378359500,1754837447942,-1862.84255123,0.00021287,2]
[378359502,1754837447951,-500.0,0.00021338,2]
[378359504,1754837447963,-12668.57659669,0.00021339,2]
[378359506,1754837447972,-312.16666667,0.00021339,2]
[378359508,1754837447982,-160.0,0.00021339,2]
[378359510,1754837447991,-231.96268195,0.00021339,2]
[378359512,1754837448000,-215.44987349,0.00021339,2]
[378359514,1754837448010,-160.0,0.00021339,2]
[378359516,1754837448019,-461.62346162,0.00021339,2]
[378359518,1754837448029,-160.0,0.00021339,2]
[378359520,1754837448038,-216.64838636,0.00021339,2]
[378359522,1754837448048,-160.0,0.00021339,2]
[378359524,1754837448057,-527.86640923,0.00021339,2]
[378359526,1754837448067,-843.0869304,0.00021339,2]
[378359528,1754837448076,-160.0,0.00021339,2]
[378359530,1754837448086,-160.0,0.00021339,2]
[378359532,1754837448095,-500.0,0.00021346,2]
[378359534,1754837448105,-461.1733706,0.00021347,2]
[378359536,1754837448114,-500.0,0.00021348,2]
[378359538,1754837448123,-591.43419727,0.00021348,2]
[378359540,1754837448133,-500.0,0.00021348,2]
[378359542,1754837448142,-500.0,0.00021348,2]
[378359544,1754837448152,-460.0,0.00021349,2]
[378359546,1754837448163,-461.22476657,0.00021349,2]
[378359548,1754837448172,-460.0,0.00021349,2]
[378359550,1754837448182,-500.0,0.00021349,2]
[378359552,1754837448191,-460.0,0.00021349,2]
[378359554,1754837448203,-460.0,0.00021349,2]
[378359556,1754837448213,-460.0,0.00021349,2]
[378359558,1754837448222,-460.0,0.00021349,2]
[378359560,1754837448232,-460.0,0.00021349,2]
[378359562,1754837448241,-301.47104184,0.00021349,2]
[378359564,1754837448250,-164.67848633,0.00021349,2]
[378359566,1754837448259,-460.0,0.00021349,2]
[378359568,1754837448268,-460.0,0.00021349,2]
[378359570,1754837448278,-460.0,0.00021349,2]
[378359572,1754837448287,-460.0,0.00021349,2]
[378359574,1754837448296,-460.0,0.00021349,2]
[378359576,1754837448306,-460.0,0.00021349,2]
[378359578,1754837448314,-460.0,0.00021349,2]
[378359580,1754837448324,-460.0,0.00021349,2]
[378359582,1754837448333,-460.0,0.00021349,2]
[378359584,1754837448343,-460.0,0.00021349,2]
[378359586,1754837448352,-460.0,0.00021349,2]
[378359588,1754837448361,-460.0,0.00021349,2]
[378359590,1754837448371,-460.0,0.00021349,2]
[378359592,1754837448380,-461.17952208,0.00021349,2]
[378359594,1754837448389,-460.0,0.00021349,2]
[378359596,1754837448401,-460.0,0.00021349,2]
[378359598,1754837448410,-460.0,0.00021349,2]
[378359600,1754837448419,-460.0,0.00021349,2]
[378359602,1754837448429,-460.0,0.00021349,2]
[378359604,1754837448438,-460.0,0.00021349,2]
[378359606,1754837448448,-460.0,0.00021349,2]
[378359608,1754837448457,-405.48576447,0.00021349,2]
[378359610,1754837448467,-460.0,0.00021349,2]
[378359612,1754837448477,-460.0,0.00021349,2]